bitfinex/quotes_BTCUSD_20251021
["timestamp","ask_amount","ask_price","bid_price","bid_amount"]
[1761048977038,0.42402608,108740.0,108730.0,0.30341802]
[1761048977243,0.0210523,108740.0,108730.0,0.30341802]
[1761048984826,0.42402608,108740.0,108730.0,0.30341802]
[1761048985252,0.0210523,108740.0,108730.0,0.30341802]
[1761048985506,0.42402608,108740.0,108730.0,0.30341802]
[1761048987685,0.0210523,108740.0,108730.0,0.30341802]
[1761048987890,0.42402608,108740.0,108730.0,0.30341802]
[1761048989967,0.0210523,108740.0,108730.0,0.30341802]
[1761048992574,0.01442515,108770.0,108760.0,0.18389113]
[1761048992782,0.44043257,108770.0,108760.0,0.29957113]
[1761048992988,0.75849911,108770.0,108760.0,0.29957113]
[1761048993403,0.75849911,108770.0,108760.0,0.32722157]
[1761048993567,0.74407396,108770.0,108760.0,0.32722157]
[1761048994182,0.74407396,108770.0,108760.0,0.32822157]
[1761048995449,0.74407396,108770.0,108760.0,0.32922157]
[1761048995654,0.76028361,108770.0,108760.0,0.32922157]
[1761049001444,0.35730983,108770.0,108760.0,0.32922157]
[1761049001678,0.76028361,108770.0,108760.0,0.32922157]
[1761049002835,0.75975578,108770.0,108760.0,0.32922157]
[1761049004143,0.35730983,108770.0,108760.0,0.32922157]
[1761049004325,0.75975578,108770.0,108760.0,0.32922157]
[1761049009408,1.16220173,108770.0,108760.0,0.32922157]
[1761049009839,0.75975578,108770.0,108760.0,0.32922157]
[1761049010482,0.75975578,108770.0,108760.0,0.30157113]
[1761049011418,1.16220173,108770.0,108760.0,0.30157113]
[1761049015458,0.75975578,108770.0,108760.0,0.30157113]
[1761049022403,0.77702248,108770.0,108760.0,0.30157113]
[1761049025467,0.75975578,108770.0,108760.0,0.30157113]
[1761049029376,0.35730983,108770.0,108760.0,0.30157113]
[1761049029584,0.75975578,108770.0,108760.0,0.30157113]
[1761049029872,0.35730983,108770.0,108760.0,0.30157113]
[1761049030064,0.75975578,108770.0,108760.0,0.30157113]
[1761049031876,0.35730983,108770.0,108760.0,0.30157113]
[1761049032101,0.01730983,108770.0,108760.0,0.79383609]
[1761049032740,0.00110018,108770.0,108760.0,0.79383609]
[1761049032971,0.00110018,108770.0,108760.0,1.19528204]
[1761049033188,0.40244595,108790.0,108780.0,0.18385732]
[1761049033189,0.24396084,108790.0,108780.0,0.18385732]
[1761049033405,0.74244595,108800.0,108790.0,0.18384042]
[1761049033616,1.14538563,108800.0,108790.0,0.18384042]
[1761049033912,1.14538563,108800.0,108790.0,0.19033339]
[1761049034338,1.16214664,108800.0,108790.0,0.19033339]
[1761049034552,1.16214664,108800.0,108790.0,0.19133339]
[1761049035631,1.16214664,108800.0,108790.0,0.19233339]
[1761049035857,1.16214664,108800.0,108790.0,0.18584042]
[1761049036303,0.01725474,108800.0,108790.0,0.18584042]
[1761049036790,0.01725474,108800.0,108790.0,0.27565943]
[1761049037449,0.00049373,108800.0,108790.0,0.67810538]
[1761049037669,0.00049373,108800.0,108790.0,0.27565943]
[1761049038118,0.01715025,108800.0,108790.0,0.27565943]
[1761049038339,0.40293968,108800.0,108790.0,0.27565943]
[1761049038559,0.80538563,108800.0,108790.0,0.39125943]
[1761049038782,1.14538563,108800.0,108790.0,0.002]
[1761049039012,0.3415441,108800.0,108790.0,0.30144042]
[1761049039443,1.146436,108800.0,108790.0,0.30144042]
[1761049041720,1.16288556,108800.0,108790.0,0.30144042]
[1761049043837,0.76043961,108800.0,108790.0,0.30144042]
[1761049045913,0.75295961,108800.0,108790.0,0.30144042]
[1761049046743,0.41994588,108800.0,108790.0,0.30144042]
[1761049052880,0.41994588,108800.0,108790.0,0.39125943]
[1761049059772,0.01749993,108800.0,108790.0,0.39125943]
[1761049061251,0.40244595,108810.0,108800.0,0.18382352]
[1761049061432,0.40259398,108810.0,108800.0,0.28013128]
[1761049061610,0.40259398,108810.0,108800.0,0.27364253]
[1761049063642,0.41801144,108810.0,108800.0,0.27364253]
[1761049063840,1.00426402,108810.0,108790.0,0.18383997]
[1761049064066,4.57031579,108800.0,108790.0,0.18384042]
[1761049064286,1.1448919,108800.0,108790.0,0.29940042]
[1761049064712,0.74227467,108800.0,108790.0,0.29940042]
[1761049065785,0.36998279,108810.0,108800.0,0.18382352]
[1761049066190,0.36998279,108810.0,108800.0,0.18482352]
[1761049066525,0.36998279,108810.0,108800.0,0.18382352]
[1761049066751,0.36998279,108810.0,108800.0,0.19031227]
[1761049066939,0.7726075,108810.0,108800.0,0.19031227]
[1761049067149,0.95641413,108810.0,108800.0,0.00748875]
[1761049067335,0.95641413,108810.0,108800.0,0.00848875]
[1761049067736,0.7726075,108810.0,108800.0,0.19231227]
[1761049068007,0.37033283,108810.0,108800.0,0.18582352]
[1761049068232,0.7726075,108810.0,108800.0,0.18582352]
[1761049068406,0.97365254,108810.0,108800.0,0.18582352]
[1761049069177,0.78984591,108810.0,108800.0,0.18582352]
[1761049070563,0.97365254,108810.0,108800.0,0.18582352]
[1761049071556,0.78984591,108810.0,108800.0,0.18582352]
[1761049071754,0.97365254,108810.0,108800.0,0.002]
[1761049071959,0.97365254,108810.0,108800.0,0.00703001]
[1761049072201,0.97365254,108810.0,108800.0,0.19085353]
[1761049072400,0.97365254,108810.0,108800.0,0.18582352]
[1761049073913,0.78984591,108810.0,108800.0,0.18582352]
[1761049074514,0.78984591,108810.0,108800.0,0.002]
[1761049074515,0.97365254,108810.0,108800.0,0.002]
[1761049074742,0.97365254,108810.0,108800.0,0.00848875]
[1761049075392,0.97325254,108810.0,108800.0,0.00848875]
[1761049076931,0.97325254,108810.0,108800.0,0.19231227]
[1761049077173,0.97325254,108810.0,108800.0,0.18582352]
[1761049078673,0.78944591,108810.0,108800.0,0.18582352]
[1761049080152,0.78945234,108810.0,108800.0,0.18582352]
[1761049080363,0.97325897,108810.0,108800.0,0.002]
[1761049080570,0.97325897,108810.0,108800.0,0.19231227]
[1761049080786,0.97325897,108810.0,108800.0,0.18582352]
[1761049081464,0.95601413,108810.0,108800.0,0.18582352]
[1761049082869,0.7722075,108810.0,108800.0,0.18582352]
[1761049084052,0.95601413,108810.0,108800.0,0.18582352]
[1761049085172,0.36993283,108810.0,108800.0,0.18582352]
[1761049085331,0.7722075,108810.0,108800.0,0.18582352]
[1761049087615,0.36993283,108810.0,108800.0,0.18582352]
[1761049088437,0.02993283,108810.0,108800.0,0.18582352]
[1761049089110,0.01551553,108810.0,108800.0,0.18582352]
[1761049089732,0.01551553,108810.0,108800.0,0.27564253]
[1761049090375,0.01551553,108810.0,108800.0,0.21285213]
[1761049096420,0.41669032,108830.0,108820.0,0.18378974]
[1761049096847,0.60046317,108830.0,108820.0,0.18378974]
[1761049097045,0.43260327,108830.0,108820.0,0.18378974]
[1761049097683,0.43260327,108830.0,108820.0,0.18973716]
[1761049099076,0.0303286,108830.0,108820.0,0.18897273]
[1761049101382,0.0300386,108830.0,108820.0,0.18378974]
[1761049101643,0.0300386,108830.0,108820.0,0.1890343]
[1761049102195,0.01591295,108830.0,108820.0,0.1890343]
[1761049102666,0.01591295,108830.0,108820.0,0.27885331]
[1761049102870,0.01591295,108830.0,108820.0,0.27360875]
[1761049104510,0.01490129,108840.0,108830.0,0.18377285]
[1761049104843,0.59540202,108850.0,108830.0,0.29929285]
[1761049105070,0.61275621,108850.0,108830.0,0.29929285]
[1761049105302,0.02296949,108840.0,108830.0,0.29929285]
[1761049105476,0.42524416,108840.0,108830.0,0.29929285]
[1761049105680,0.40227467,108840.0,108830.0,0.29929285]
[1761049106462,0.74227467,108840.0,108830.0,0.29929285]
[1761049107064,0.34,108840.0,108830.0,0.29929285]
[1761049109201,0.35519741,108840.0,108830.0,0.29929285]
[1761049110233,0.01554731,108840.0,108830.0,0.38911186]
[1761049112798,0.01554731,108840.0,108830.0,0.39011186]
[1761049113865,0.01554731,108840.0,108830.0,0.39111186]
[1761049116163,0.01554731,108840.0,108830.0,0.27559186]
[1761049116367,0.41782198,108840.0,108830.0,0.39111186]
[1761049116635,0.01554731,108840.0,108830.0,0.39111186]
[1761049121770,0.41782198,108840.0,108830.0,0.20733901]
[1761049122017,0.41782198,108840.0,108830.0,0.30129285]
[1761049122596,0.01554731,108840.0,108830.0,0.39111186]
[1761049124442,0.01554731,108840.0,108830.0,0.39153187]
[1761049130547,0.01554731,108840.0,108830.0,0.41916051]
[1761049130954,0.0003499,108840.0,108830.0,0.82096917]
[1761049131163,0.02713694,108840.0,108830.0,0.41916051]
[1761049131369,0.0003499,108840.0,108830.0,0.82096917]
[1761049132215,0.74215666,108850.0,108840.0,0.18375597]
[1761049132216,0.57716432,108850.0,108840.0,0.18375597]
[1761049132426,0.40180866,108850.0,108840.0,0.27357498]
[1761049132662,0.40200866,108860.0,108850.0,0.18373909]
[1761049132911,0.80381732,108860.0,108850.0,0.18373909]
[1761049133126,0.40270829,108860.0,108850.0,0.18373909]
[1761049133328,0.40270829,108860.0,108850.0,0.1841591]
[1761049133567,0.40270829,108860.0,108850.0,0.19062674]
[1761049134457,0.02815219,108860.0,108850.0,0.30610674]
[1761049134657,0.42996085,108860.0,108850.0,0.2996391]
[1761049135378,0.02815219,108860.0,108850.0,0.2996391]
[1761049135557,0.42996085,108860.0,108850.0,0.2996391]
[1761049136397,0.00089963,108860.0,108850.0,0.79226677]
[1761049136656,0.02850584,108860.0,108850.0,0.79326677]
[1761049136860,0.02850584,108860.0,108850.0,0.82088801]
[1761049137274,0.0002,108870.0,108860.0,0.18372221]
[1761049137484,0.0002,108870.0,108860.0,0.2781837]
[1761049137693,0.0002,108870.0,108860.0,0.27396123]
[1761049137927,0.00054976,108870.0,108860.0,0.27396123]
[1761049138131,0.00054976,108870.0,108860.0,0.30158247]
[1761049138342,0.40235842,108870.0,108860.0,0.21176346]
[1761049138550,0.40235842,108870.0,108860.0,0.30062222]
[1761049139341,0.40235842,108870.0,108860.0,0.38944123]
[1761049139575,0.40235842,108870.0,108860.0,0.39144123]
[1761049139787,0.40235842,108870.0,108860.0,0.41906354]
[1761049140213,0.02839908,108870.0,108860.0,0.41806354]
[1761049140422,0.00054976,108870.0,108860.0,0.41906354]
[1761049140866,0.00054976,108870.0,108860.0,0.8198722]
[1761049141279,0.00054976,108870.0,108860.0,0.8208722]
[1761049141714,0.00054976,108870.0,108860.0,0.8188722]
[1761049141934,0.00054976,108870.0,108860.0,0.8208722]
[1761049142145,0.00054976,108870.0,108860.0,0.8198722]
[1761049142575,0.00054976,108870.0,108860.0,0.8208722]
[1761049142812,0.00054976,108870.0,108860.0,0.42106354]
[1761049143237,0.00054976,108870.0,108860.0,0.8228722]
[1761049143501,0.0002,108880.0,108870.0,0.18370533]
[1761049143724,0.0002,108880.0,108870.0,0.67561777]
[1761049143951,0.0002,108880.0,108870.0,0.68533299]
[1761049144381,0.0002,108880.0,108870.0,0.28762611]
[1761049144568,0.0002,108880.0,108870.0,0.68943477]
[1761049145009,0.0002,108880.0,108870.0,0.69143477]
[1761049145659,0.0002,108880.0,108870.0,0.69043477]
[1761049145845,0.0002,108880.0,108870.0,0.68943477]
[1761049146072,0.0002,108880.0,108870.0,0.72961705]
[1761049146514,0.0002,108880.0,108870.0,0.72761705]
[1761049147262,0.0002,108880.0,108870.0,0.7533466]
[1761049147692,0.0002,108880.0,108870.0,0.7553466]
[1761049147967,0.0002,108880.0,108870.0,0.72961705]
[1761049149298,0.0005497,108880.0,108870.0,0.75737107]
[1761049151028,1e-08,108880.0,108870.0,1.15917973]
[1761049151242,1e-08,108880.0,108870.0,1.16917972]
[1761049151451,0.0002,108900.0,108890.0,0.58548025]
[1761049151688,0.00034798,108900.0,108890.0,0.83708153]
[1761049151913,0.00034798,108900.0,108890.0,0.43527287]
[1761049152125,0.00034798,108900.0,108890.0,0.83750154]
[1761049152334,0.00034798,108900.0,108890.0,0.84118254]
[1761049152868,0.00034798,108900.0,108890.0,0.84218254]
[1761049153785,0.00034798,108900.0,108890.0,0.84318254]
[1761049154012,0.0002,108920.0,108910.0,0.63162879]
[1761049154236,0.00069315,108920.0,108910.0,0.8370078]
[1761049154706,1e-08,108920.0,108910.0,1.58881645]
[1761049154935,1e-08,108920.0,108910.0,1.59249664]
[1761049155161,1e-08,108930.0,108920.0,1.03342059]
[1761049155393,1e-08,108930.0,108920.0,1.1232396]
[1761049155647,1e-08,108930.0,108920.0,1.50131754]
[1761049155860,1e-08,108930.0,108920.0,1.49131755]
[1761049155998,1e-08,108930.0,108920.0,1.4736596]
[1761049156225,1e-08,108930.0,108920.0,1.06185095]
[1761049156419,1e-08,108930.0,108920.0,0.67204228]
[1761049156632,1e-08,108930.0,108920.0,1.07385094]
[1761049156829,1e-08,108930.0,108920.0,1.06385095]
[1761049157044,1e-08,108930.0,108920.0,1.14445996]
[1761049157250,1e-08,108930.0,108920.0,1.54626862]
[1761049157450,0.00174766,108930.0,108920.0,0.7426513]
[1761049157655,0.00174766,108930.0,108920.0,1.54826862]
[1761049160041,0.00174766,108930.0,108920.0,1.57586752]
[1761049161556,0.00174766,108930.0,108920.0,0.7722502]
[1761049161890,0.00174766,108930.0,108920.0,1.57586752]
[1761049162111,0.00174766,108930.0,108920.0,1.53968524]
[1761049162531,0.0002,108950.0,108940.0,0.58539595]
[1761049162735,0.00034789,108950.0,108940.0,0.3890463]
[1761049162943,0.00034789,108950.0,108940.0,0.79127497]
[1761049163209,0.00034789,108950.0,108940.0,0.38946631]
[1761049163416,0.00034789,108950.0,108940.0,0.81887128]
[1761049164489,0.00034789,108950.0,108940.0,1.22267994]
[1761049164968,0.0002,108970.0,108940.0,1.2318593]
[1761049165186,0.0002,108970.0,108960.0,0.58536225]
[1761049165404,0.0002,108970.0,108960.0,0.79082126]
[1761049165617,0.0002,108970.0,108960.0,0.3890126]
[1761049165839,0.0002,108970.0,108960.0,0.41660643]
[1761049166275,0.40200866,108970.0,108960.0,0.41702644]
[1761049167393,0.0002,108970.0,108960.0,0.41702644]
[1761049167617,0.40200866,108970.0,108960.0,0.41702644]
[1761049167829,0.0002,108970.0,108960.0,0.41702644]
[1761049168036,0.40200866,108970.0,108960.0,0.41702644]
[1761049168727,0.40200866,108970.0,108960.0,0.41802644]
[1761049168921,0.40200866,108970.0,108960.0,0.41902644]
[1761049169131,0.00159728,108970.0,108960.0,0.41902644]
[1761049169307,0.40340594,108970.0,108960.0,0.41902644]
[1761049169720,0.00159728,108970.0,108960.0,0.41902644]
[1761049169935,0.40340594,108970.0,108960.0,0.41902644]
[1761049170378,0.40340594,108970.0,108960.0,0.39143261]
[1761049170600,0.00159728,108970.0,108960.0,0.39143261]
[1761049171316,0.00159728,108970.0,108960.0,0.79324127]
[1761049171526,0.00159728,108970.0,108960.0,0.39143261]
[1761049172189,0.00159728,108970.0,108960.0,0.79324127]
[1761049172760,0.00159728,108970.0,108960.0,0.39143261]
[1761049172959,0.00159728,108970.0,108960.0,0.8208351]
[1761049178601,0.00159728,108970.0,108960.0,1.22264376]
[1761049178992,0.00159728,108970.0,108960.0,0.41902644]
[1761049179394,0.00159728,108970.0,108960.0,0.8208351]
[1761049179626,0.00159728,108970.0,108960.0,1.22264376]
[1761049180259,0.00159728,108970.0,108960.0,0.8208751]
[1761049180682,0.00159728,108970.0,108960.0,1.22268376]
[1761049181095,0.00159728,108970.0,108960.0,0.8208751]
[1761049183634,1e-08,108970.0,108960.0,0.85705738]
[1761049183818,1e-08,108970.0,108960.0,1.26886603]
[1761049184061,1e-08,108970.0,108960.0,1.27886602]
[1761049185170,1e-08,108970.0,108960.0,0.87605736]
[1761049185591,1e-08,108970.0,108960.0,1.27686602]
[1761049186018,1e-08,108970.0,108960.0,1.27886602]
[1761049186265,1e-08,108970.0,108960.0,1.27644601]
[1761049186478,1e-08,108970.0,108960.0,1.28044601]
[1761049186905,1e-08,108970.0,108960.0,1.27844601]
[1761049187334,1e-08,108970.0,108960.0,1.28044601]
[1761049188675,1e-08,108970.0,108960.0,1.34817573]
[1761049188931,1e-08,108970.0,108960.0,0.94524349]
[1761049189578,9.18153508,109000.0,108990.0,0.18350307]
[1761049189793,9.18168291,109000.0,108990.0,0.38892208]
[1761049190261,9.1827304,109000.0,108990.0,0.38892208]
[1761049191082,9.1827304,109000.0,108990.0,0.38992208]
[1761049191720,9.58341548,109000.0,108990.0,0.38992208]
[1761049192132,9.1827304,109000.0,108990.0,0.39092208]
[1761049192982,9.21986534,109000.0,108990.0,0.39092208]
[1761049195181,9.62055042,109000.0,108990.0,0.39092208]
[1761049195400,9.62055042,109000.0,108990.0,0.11756]
[1761049195627,13.14403665,109000.0,108990.0,0.002]
[1761049196043,13.14403665,109000.0,108990.0,0.00204]
[1761049196246,13.14403665,109000.0,108990.0,0.00104]
[1761049196869,13.14403665,109000.0,108990.0,0.00204]
[1761049197051,13.14403665,109000.0,108990.0,4e-05]
[1761049199059,13.54472173,109000.0,108990.0,4e-05]
[1761049199232,13.63454074,109000.0,108990.0,4e-05]
[1761049199439,13.54472173,109000.0,108990.0,4e-05]
[1761049200405,12.74335157,109000.0,108990.0,4e-05]
[1761049200618,13.54472173,109000.0,108990.0,4e-05]
[1761049204419,13.63524089,109000.0,108990.0,4e-05]
[1761049204922,12.96055042,109000.0,108990.0,4e-05]
[1761049205153,9.1827304,109000.0,108990.0,0.67596014]
[1761049205369,9.1827304,109000.0,108990.0,0.27336208]
[1761049205617,9.1837304,109000.0,108990.0,0.27336208]
[1761049206067,9.1827304,109000.0,108990.0,0.27336208]
[1761049206743,8.98941491,109000.0,108990.0,0.27336208]
[1761049208578,7.65676576,109000.0,108990.0,1.01897801]
[1761049208793,7.17053862,109000.0,108990.0,1.368978]
[1761049209018,7.14296257,109000.0,108990.0,1.43837721]
[1761049209486,7.14296257,109000.0,108990.0,0.78598434]
[1761049209489,7.14296257,109000.0,108990.0,0.66954434]
[1761049209700,6.55342744,109000.0,108990.0,1.487418]
[1761049209922,6.35446304,109000.0,108990.0,1.487418]
[1761049210139,5.93967234,109000.0,108990.0,1.485418]
[1761049210350,5.61603959,109000.0,108990.0,1.485418]
[1761049210611,5.39802894,109000.0,108990.0,1.485418]
[1761049210811,5.28608882,109000.0,108990.0,1.485418]
[1761049211022,5.00807175,109000.0,108990.0,1.485418]
[1761049211251,4.15957739,109000.0,108990.0,1.66184303]
[1761049211458,3.80997261,109000.0,108990.0,4.89433796]
[1761049211674,3.80997261,109000.0,108990.0,4.59454729]
[1761049211675,3.78239656,109000.0,108990.0,4.59454729]
[1761049211901,3.60922205,109000.0,108990.0,4.58419917]
[1761049212113,3.21418055,109000.0,108990.0,4.58219917]
[1761049212342,2.19408321,109000.0,108990.0,5.20172244]
[1761049212563,2.07469271,109000.0,108990.0,5.20172244]
[1761049212779,2.01272045,109000.0,108990.0,5.20172244]
[1761049213008,1.98516617,109000.0,108990.0,4.79664729]
[1761049213236,1.98516617,109000.0,108990.0,4.80582076]
[1761049213237,1.40231583,109000.0,108990.0,4.80582076]
[1761049213444,1.13985481,109000.0,108990.0,4.80982076]
[1761049213651,1.06899936,109000.0,108990.0,4.1103871]
[1761049213863,1.04144508,109000.0,108990.0,4.80982076]
[1761049214075,1.0138908,109000.0,108990.0,4.80982076]
[1761049214297,0.1971953,109000.0,108990.0,4.1063871]
[1761049214538,0.066878,109000.0,108990.0,4.80982076]
[1761049214746,0.21684007,109030.0,109020.0,0.59880744]
[1761049214955,0.18977846,109030.0,109020.0,4.61314011]
[1761049215170,1e-08,109030.0,109020.0,4.61314011]
[1761049215383,0.0021,109050.0,109040.0,0.5434189]
[1761049215599,0.00224774,109050.0,109040.0,1.48573385]
[1761049217588,0.00224774,109050.0,109040.0,1.48873385]
[1761049217816,0.00224774,109050.0,109040.0,1.49173385]
[1761049218021,0.25178485,109060.0,109050.0,0.23958436]
[1761049218221,0.25178485,109060.0,109050.0,1.02883703]
[1761049218837,0.25178485,109060.0,109050.0,0.99265475]
[1761049219047,0.37794646,109120.0,109070.0,0.19336846]
[1761049219274,1.07738012,109120.0,109070.0,1.09942113]
[1761049219670,1.26983265,109120.0,109070.0,1.09942113]
[1761049220019,1.26066752,109120.0,109070.0,0.39998747]
[1761049220229,1.26982881,109120.0,109070.0,1.09942113]
[1761049220434,0.37794646,109120.0,109070.0,1.09942113]
[1761049220643,0.34,109120.0,109070.0,1.09942113]
[1761049220928,0.34,109120.0,109070.0,1.43942113]
[1761049221141,0.34,109120.0,109070.0,1.47671199]
[1761049221392,0.10791,109100.0,109090.0,0.18333486]
[1761049221643,0.10805768,109100.0,109090.0,0.39628045]
[1761049221885,0.10805768,109100.0,109090.0,0.38991387]
[1761049222141,0.1115456,109100.0,109090.0,0.38991387]
[1761049222368,0.1115456,109100.0,109090.0,0.42609615]
[1761049222596,0.1115456,109100.0,109090.0,0.43609614]
[1761049223064,0.1115456,109100.0,109090.0,0.43809614]
[1761049223995,0.1115456,109100.0,109090.0,1.37076979]
[1761049224214,0.1115456,109100.0,109090.0,1.4775298]
[1761049224434,0.1115456,109100.0,109090.0,1.48752979]
[1761049224652,0.1115456,109100.0,109090.0,0.78809613]
[1761049224885,0.1115456,109100.0,109090.0,0.32133614]
[1761049225108,0.1115456,109100.0,109090.0,0.43809614]
[1761049225335,0.1115456,109100.0,109090.0,0.43851515]
[1761049225544,0.1115456,109100.0,109090.0,1.13794881]
[1761049225764,0.1115456,109100.0,109090.0,0.43851515]
[1761049227734,0.1115456,109100.0,109090.0,0.78851514]
[1761049227949,0.1115456,109100.0,109090.0,1.4879488]
[1761049228622,0.1115456,109100.0,109090.0,1.51224835]
[1761049230844,0.1115456,109100.0,109090.0,1.51370202]
[1761049231302,0.1115456,109100.0,109090.0,1.4969488]
[1761049231736,0.1115456,109100.0,109090.0,1.4949488]
[1761049231942,0.1115456,109100.0,109090.0,1.4979488]
[1761049232373,1e-08,109100.0,109090.0,1.4949488]
[1761049232801,0.26696585,109130.0,109120.0,0.22946672]
[1761049233018,0.26696585,109130.0,109120.0,0.43604573]
[1761049234108,0.26696585,109130.0,109120.0,0.43646474]
[1761049234737,0.26696585,109130.0,109120.0,0.43846474]
[1761049236499,0.96639951,109130.0,109120.0,0.09223802]
[1761049236704,0.96639951,109130.0,109120.0,0.20891802]
[1761049237133,0.26696585,109130.0,109120.0,0.20891802]
[1761049237353,0.96639951,109130.0,109120.0,0.20891802]
[1761049237525,0.96639951,109130.0,109120.0,0.20691802]
[1761049237738,0.26696585,109130.0,109120.0,0.20691802]
[1761049237932,0.96639951,109130.0,109120.0,0.20791802]
[1761049238136,0.98544024,109130.0,109120.0,0.00141901]
[1761049238319,0.96744513,109130.0,109120.0,0.00141901]
[1761049238685,0.96744513,109130.0,109120.0,0.00777415]
[1761049238884,0.26801147,109130.0,109120.0,0.00777415]
[1761049239141,0.96744513,109130.0,109120.0,0.00677415]
[1761049239302,0.96744513,109130.0,109120.0,0.09659316]
[1761049239505,0.96744513,109130.0,109120.0,0.09759316]
[1761049239722,0.26801147,109130.0,109120.0,0.09759316]
[1761049239960,0.96744513,109130.0,109120.0,0.09759316]
[1761049240324,0.26801147,109130.0,109120.0,0.09759316]
[1761049240537,0.96744513,109130.0,109120.0,0.09759316]
[1761049240704,0.96744513,109130.0,109120.0,0.09659316]
[1761049240914,0.96744513,109130.0,109120.0,0.09759316]
[1761049243147,0.26801147,109130.0,109120.0,0.09759316]
[1761049243362,1.19584703,109130.0,109120.0,0.00777415]
[1761049243581,1.54441047,109130.0,109120.0,0.00141901]
[1761049243791,1.49927623,109130.0,109120.0,0.00141901]
[1761049244436,4.49927623,109130.0,109120.0,0.00041901]
[1761049245085,4.49071279,109130.0,109120.0,0.00041901]
[1761049245764,4.5805318,109130.0,109120.0,0.00041901]
[1761049245969,4.67035081,109130.0,109120.0,0.00041901]
[1761049247266,4.69791166,109130.0,109120.0,0.00041901]
[1761049247681,4.60809265,109130.0,109120.0,0.00041901]
[1761049248580,5.37057946,109130.0,109120.0,0.00041901]
[1761049248795,4.88207822,109130.0,109120.0,0.00041901]
[1761049249017,4.85520735,109130.0,109120.0,0.00041901]
[1761049250068,4.85420735,109130.0,109120.0,0.00041901]
[1761049250277,4.94402636,109130.0,109120.0,0.00041901]
[1761049250489,4.94502636,109130.0,109120.0,0.00041901]
[1761049250720,4.86958632,109130.0,109120.0,0.00041901]
[1761049250941,4.86858632,109130.0,109120.0,0.00041901]
[1761049251161,4.86958632,109130.0,109120.0,0.00041901]
[1761049252193,4.83340404,109130.0,109120.0,0.00041901]
[1761049252396,3.92403796,109130.0,109120.0,0.00041901]
[1761049252608,3.90965899,109130.0,109120.0,0.00041901]
[1761049252829,4.90884408,109130.0,109120.0,0.00041901]
[1761049254228,1.5459384,109130.0,109120.0,0.09023802]
[1761049254443,0.27756896,109130.0,109120.0,0.27987645]
[1761049254645,0.26901147,109130.0,109120.0,0.27352247]
[1761049255198,0.26801147,109130.0,109120.0,0.27352247]
[1761049255667,0.26801147,109130.0,109120.0,0.30970475]
[1761049256082,0.26801147,109130.0,109120.0,1.11438778]
[1761049256289,0.26901147,109130.0,109120.0,1.11438778]
[1761049256826,0.26801147,109130.0,109120.0,1.11438778]
[1761049257048,0.26801147,109130.0,109120.0,1.11638778]
[1761049257636,0.26801147,109130.0,109120.0,0.66170474]
[1761049257832,0.26801147,109130.0,109120.0,1.11638778]
[1761049258248,0.26801147,109130.0,109120.0,1.15333971]
[1761049258454,0.26801147,109130.0,109120.0,1.1633397]
[1761049258856,0.26801147,109130.0,109120.0,1.2079397]
[1761049259340,8e-05,109140.0,109130.0,0.54326764]
[1761049259558,0.00057218,109140.0,109130.0,1.20500969]
[1761049259987,0.00092063,109140.0,109130.0,1.20500969]
[1761049260207,0.00092063,109140.0,109130.0,0.74032666]
[1761049260461,0.00092063,109140.0,109130.0,1.20500969]
[1761049260676,0.00092063,109140.0,109130.0,1.2074287]
[1761049260891,0.00092063,109140.0,109130.0,1.24361098]
[1761049261312,0.00092063,109140.0,109130.0,1.25261098]
[1761049261524,1e-08,109140.0,109130.0,1.25261098]
[1761049261786,0.28593372,109160.0,109150.0,0.54323406]
[1761049262017,0.28608134,109160.0,109150.0,1.20521611]
[1761049262439,0.2867781,109160.0,109150.0,1.20521611]
[1761049262866,0.2867781,109160.0,109150.0,0.75095208]
[1761049263330,0.2867781,109160.0,109150.0,1.2418174]
[1761049263549,0.2867781,109160.0,109150.0,1.2438174]
[1761049265067,0.2867781,109160.0,109150.0,0.78913436]
[1761049265495,0.2867781,109160.0,109150.0,0.77913437]
[1761049265964,0.2867781,109160.0,109150.0,0.78913436]
[1761049266171,0.2867781,109160.0,109150.0,1.2418174]
[1761049266380,0.2867781,109160.0,109150.0,1.2438174]
[1761049267065,0.2867781,109160.0,109150.0,1.2418174]
[1761049267894,0.07625206,109190.0,109180.0,0.18318373]
[1761049268128,0.28973735,109220.0,109210.0,0.1931334]
[1761049268428,0.26236512,109220.0,109210.0,1.34105772]
[1761049268647,0.20732558,109220.0,109210.0,1.34105772]
[1761049268864,0.17980525,109220.0,109210.0,1.34105772]
[1761049269091,0.0002,109270.0,109240.0,0.22926538]
[1761049269336,0.29781954,109250.0,109240.0,0.43740439]
[1761049269568,0.27029921,109250.0,109240.0,0.42782341]
[1761049269791,0.27029921,109250.0,109240.0,0.89250644]
[1761049270463,0.24277888,109250.0,109240.0,1.28199253]
[1761049270684,0.21525855,109250.0,109240.0,1.28199253]
[1761049270937,0.18773822,109250.0,109240.0,0.82730949]
[1761049271158,0.18773822,109250.0,109240.0,1.28199253]
[1761049271585,0.16021789,109250.0,109240.0,1.28199253]
[1761049271804,0.10517723,109250.0,109240.0,1.74567557]
[1761049272033,0.0776569,109250.0,109240.0,1.74567557]
[1761049272268,0.05013657,109250.0,109240.0,1.74567557]
[1761049272507,0.0002,109270.0,109260.0,0.19304959]
[1761049272734,0.00034745,109270.0,109260.0,1.19599164]
[1761049272954,0.00034745,109270.0,109260.0,1.20599163]
[1761049273173,0.00034745,109270.0,109260.0,0.74755163]
[1761049273395,0.00034745,109270.0,109260.0,0.86603163]
[1761049273849,0.09970995,109280.0,109270.0,0.03618228]
[1761049274057,0.09970995,109280.0,109270.0,0.08981901]
[1761049274268,0.09970995,109280.0,109270.0,0.20829901]
[1761049274745,0.09970995,109280.0,109270.0,0.39133186]
[1761049274956,0.09970995,109280.0,109270.0,0.39175087]
[1761049275169,0.09970995,109280.0,109270.0,0.43793314]
[1761049276086,0.09970995,109280.0,109270.0,0.43993314]
[1761049276726,0.09970995,109280.0,109270.0,0.43793314]
[1761049277154,0.09970995,109280.0,109270.0,0.43993314]
[1761049278009,0.07221527,109280.0,109270.0,0.79893313]
[1761049278240,0.04472059,109280.0,109270.0,0.82468635]
[1761049278479,0.01722591,109280.0,109270.0,0.852188]
[1761049278704,8e-05,109290.0,109280.0,0.23919836]
[1761049278893,1.002,109300.0,109290.0,0.57918161]
[1761049279126,1.002,109300.0,109290.0,0.88648062]
[1761049279337,1.002,109300.0,109290.0,0.88689963]
[1761049279806,0.97450532,109300.0,109290.0,0.91254397]
[1761049280026,0.94701064,109300.0,109290.0,0.91254397]
[1761049280245,0.91951596,109300.0,109290.0,0.94003891]
[1761049280462,0.8645266,109300.0,109290.0,0.94003891]
[1761049280684,0.83703192,109300.0,109290.0,0.91739457]
[1761049280907,0.83703192,109300.0,109290.0,0.90735458]
[1761049281167,0.80953724,109300.0,109290.0,0.88985963]
[1761049281408,0.78204256,109300.0,109290.0,0.95856672]
[1761049281640,0.75454788,109300.0,109290.0,0.98606255]
[1761049281832,0.7270532,109300.0,109290.0,0.91735546]
[1761049282078,0.69955852,109300.0,109290.0,0.95010497]
[1761049282305,0.67206384,109300.0,109290.0,0.95010497]